[Event "FIDE WSCC 50 2022"]
[Site "Assisi"]
[Date "2022.11.26"]
[Round "11.4"]
[White "Paschall, William"]
[Black "Danielsen, Henrik"]
[Result "1/2-1/2"]
[ECO "A21"]
[WhiteElo "2343"]
[BlackElo "2514"]
[Annotator "TA"]
[PlyCount "80"]
[EventDate "2022.11.14"]
[EventType "swiss"]
[EventCountry "ITA"]
[SourceTitle "playchess.com"]
[Source "ChessBase"]
[SourceQuality "1"]
[TimeControl "40/5400+30:1800+30"]

{[%evp 14,80,33,31,27,25,31,31,41,15,26,21,35,13,28,0,4,0,0,-7,0,0,0,0,0,-22,-10,-16,-8,-37,-38,-33,-45,-42,-32,-30,-32,-33,0,-57,-17,-36,0,-22,-17,-28,0,0,22,-9,0,0,26,42,44,46,64,30,28,35,12,-10,-12,-36,-17,-37,-38,-58,-36]} 1. d4 {[%emt 0:01:02]} d6 {[%emt 0:00:40]} 2. c4 {[%emt 0:02:57]} e5 {[%emt 0:02:03]} 3. Nc3 {[%emt 0:01:55]} exd4 {[%emt 0:07:04]} 4. Qxd4 {[%emt 0:00:14]} Be6 {[%emt 0:00:29]} 5. b3 {[%emt 0:19:20]} Nf6 {[%emt 0:02:33]} 6. e4 {[%emt 0:02:05]} Nc6 {[%emt 0:00:25]} 7. Qd2 {[%emt 0:00:19]} a5 {[%emt 0:00:58]} 8. Bd3 {[%emt 0:02:22]} a4 {[%emt 0:03:41] A21: English Opening: 1...e5 2 Nc3.} 9. Rb1 {[%emt 0:02:23]} axb3 {[%emt 0:05:12]} 10. axb3 {[%emt 0:00:17]} g6 {[%emt 0:01:13] White is slightly better.} 11. Nge2 {[%emt 0:05:29]} Bg7 {[%emt 0:01:51]} 12. O-O {[%emt 0:03:43]} O-O {[%emt 0:00:24]} 13. Bb2 {[%emt 0:01:40]} Re8 {[%emt 0:09:11]} 14. Nd5 {[%emt 0:05:49]} (14. Nd1 {seems wilder.} Qb8 15. f3 Qa7+ 16. Kh1) 14... Bxd5 {[%emt 0:02:48]} 15. cxd5 {[%emt 0:03:40]} Ne5 {[%emt 0:00:30] [#]} 16. Nc3 $146 {[%emt 0:02:41]} ({Predecessor:} 16. Bc2 c6 17. dxc6 bxc6 18. Ra1 Rb8 19. Bc3 d5 20. f4 Neg4 21. e5 Qb6+ 22. Bd4 {½-½ (30) Polugaevsky,L-Tseshkovsky,V Leningrad 1974}) 16... c6 {[%emt 0:01:48]} 17. dxc6 {[%emt 0:01:25]} bxc6 {[%emt 0:00:04]} 18. Be2 {[%emt 0:01:25]} Rb8 {[%emt 0:03:06]} 19. Qc2 {[%emt 0:05:55]} Qb6 {[%emt 0:03:50]} 20. Bc1 {[%emt 0:04:12]} d5 {[%emt 0:00:57]} 21. exd5 {[%emt 0:00:51]} cxd5 {[%emt 0:01:34] aiming for ...Qc7.} 22. Na4 {[%emt 0:01:42]} Qb4 {[%emt 0:00:38]} 23. Bd2 {[%emt 0:05:32]} Qh4 {[%emt 0:00:55]} 24. Be1 {[%emt 0:01:23]} Qf4 {[%emt 0:10:54]} 25. Bd2 {[%emt 0:01:05]} Qh4 {[%emt 0:00:49]} 26. Be1 {[%emt 0:00:07] [#] Strongly threatening f4. This pair of bishops is nice.} Rbc8 {[%emt 0:00:08] Against f4} (26... Nc6 $5 {[%cal Rc6d4]} 27. f3 Qg5 $17) 27. Qd1 {[%emt 0:00:45] Hoping for f4.} Qe4 {[%emt 0:06:34]} (27... Qf4 $5 {[%cal Rd5d4]}) 28. Nc3 {[%emt 0:02:54]} Qf5 {[%emt 0:00:13]} 29. Nb5 {[%emt 0:01:07] Nd6 is the strong threat.} Neg4 {[%emt 0:06:30][%cal Oe8e2] [#] And now ...Rxe2! would win.} 30. Nd4 {[%emt 0:08:58]} Qe4 {[%emt 0:18:21]} 31. Bf3 {[%emt 0:02:50]} (31. h3 {is interesting.} Nh5 32. Bf3 Qxd4 33. Bxg4 Ng3 34. Bxc8 Rxc8 35. Qxd4 Bxd4 36. Rd1) 31... Qf4 {[%emt 0:01:44][%csl Gg4][%cal Rf4h2]} 32. g3 {[%emt 0:00:16]} Qg5 {[%emt 0:00:46]} 33. h3 {[%emt 0:02:58]} Ne5 {[%emt 0:05:52]} 34. Bg2 {[%emt 0:00:31] Black must now prevent f4.} Nc6 {[%emt 0:00:51]} 35. Nxc6 {[%emt 0:04:44]} (35. Bd2 $5 {[%cal Rd2g5]} Qe5 36. Nxc6 Rxc6 37. b4 $14) 35... Rxc6 {[%emt 0:00:01]} 36. Bd2 {[%emt 0:00:23]} (36. b4 $5 {[%cal Rb4b5]}) 36... Qf5 {[%emt 0:00:09]} 37. Be3 {[%emt 0:02:29]} Ne4 {[%emt 0:00:10]} 38. Qf3 {[%emt 0:01:17]} Qc8 {[%emt 0:01:23]} 39. Rbd1 {[%emt 0:00:30]} Nc3 {[%emt 0:00:52]} 40. Rd3 {[%emt 0:00:25]} Qa6 {[%emt 0:00:23] Weighted Error Value: White=0.11 (very precise) /Black=0.11 (very precise)} (40... Rf6 $5 {[%cal Rf6f3]} 41. Qg4 Rf5 $15) 1/2-1/2

[Event "FIDE WSCC 50 2022"]
[Site "Assisi"]
[Date "2022.11.26"]
[Round "11.7"]
[White "Lima, Darcy"]
[Black "Tereladze, Sopio"]
[Result "1/2-1/2"]
[ECO "D35"]
[WhiteElo "2415"]
[BlackElo "2154"]
[Annotator "TA"]
[PlyCount "77"]
[EventDate "2022.11.14"]
[EventType "swiss"]
[EventCountry "ITA"]
[SourceTitle "playchess.com"]
[Source "ChessBase"]
[SourceQuality "1"]
[TimeControl "40/5400+30:1800+30"]

{[%evp 18,77,27,33,37,37,50,52,70,0,8,3,8,8,0,0,68,68,68,68,68,68,68,68,68,68,141,134,134,134,134,134,141,141,141,141,149,149,149,149,149,149,149,149,149,0,149,81,81,81,81,81,81,0,0,0,0,0,0,0,0,0]} 1. c4 {[%emt 0:00:18]} e6 {[%emt 0:02:01]} 2. Nc3 {[%emt 0:00:27]} d5 {[%emt 0:00:40]} 3. d4 {[%emt 0:00:09]} Nf6 {[%emt 0:00:08]} 4. cxd5 {[%emt 0:00:17]} exd5 {[%emt 0:00:07]} 5. Bg5 {[%emt 0:00:06]} c6 {[%emt 0:00:35]} 6. e3 {[%emt 0:00:12]} Bf5 {[%emt 0:00:19]} 7. Qf3 {[%emt 0:02:55]} Bg6 {[%emt 0:00:19]} 8. Bxf6 {[%emt 0:00:09]} Qxf6 {[%emt 0:00:01]} 9. Qxf6 {[%emt 0:00:08]} gxf6 {[%emt 0:00:01]} 10. Nf3 $1 {[%emt 0:02:05] 10.Nf3 scores better than 10.h4.} Bd6 {[%emt 0:02:18] D35: Queen's Gambit Declined: Exchange Variation.} 11. Nh4 {[%emt 0:01:41] [#]} f5 $146 {[%emt 0:06:04]} ({Predecessor:} 11... Ke7 12. g3 Nd7 13. Bh3 Nb6 14. Nf5+ Bxf5 15. Bxf5 Nc4 16. O-O-O Bb4 17. Ne2 Nd6 18. Bd3 {½-½ (27) Zhao,Z (2558)-Ganguly,S (2603) Canberra 2015}) 12. g3 {[%emt 0:13:17] Prevents f4.} Be7 {[%emt 0:04:20] White is slightly better.} 13. f4 {[%emt 0:00:44]} ({Better is} 13. Ne2 $14) 13... Bxh4 {[%emt 0:00:46]} 14. gxh4 {[%emt 0:00:04]} Nd7 {[%emt 0:02:08]} 15. Ne2 {[%emt 1:15:28]} Nf6 {[%emt 0:02:05]} 16. Ng3 {[%emt 0:00:00]} Nh5 {[%emt 0:04:49]} (16... Rg8 $11) 17. Be2 {[%emt 0:00:00]} Nxg3 {[%emt 0:00:09]} 18. hxg3 {[%emt 0:00:00] [#] Threatens to win with h5.} h5 {[%emt 0:06:56]} 19. b4 {[%emt 0:00:00]} a6 {[%emt 0:00:47]} 20. a4 {[%emt 0:00:00]} Kd7 {[%emt 0:00:10]} 21. Kf2 {[%emt 0:00:00]} b5 {[%emt 0:12:57]} (21... f6 $14) 22. Ra3 {[%emt 0:03:30]} Kc7 {[%emt 0:00:04]} 23. Rc1 {[%emt 0:00:00] [#] Black must now prevent Rac3.} Kb7 {[%emt 0:01:57]} 24. Rac3 {[%emt 0:00:00] Hoping for axb5.} Rhc8 {[%emt 0:02:02]} 25. Bf1 {[%emt 0:00:00]} Rab8 {[%emt 0:03:49]} 26. Bd3 {[%emt 0:00:00]} f6 {[%emt 0:05:07]} 27. Ra1 {[%emt 0:00:00] White is more active.} Ra8 {[%emt 0:00:37]} 28. Rca3 {[%emt 0:00:00]} Rg8 {[%emt 0:03:50]} 29. Bc2 {[%emt 0:00:00]} Rh8 {[%emt 0:00:45]} 30. Rc3 {[%emt 0:00:00]} Rac8 {[%emt 0:02:50]} 31. Rca3 {[%emt 0:00:00] Strongly threatening axb5.} Ra8 $1 {[%emt 0:00:05]} 32. axb5 {[%emt 0:00:00]} ({White should try} 32. Rc1) 32... axb5 $16 {[%emt 0:00:18]} 33. Rxa8 {[%emt 0:00:00]} Rxa8 {[%emt 0:00:01]} 34. Rxa8 {[%emt 0:00:00]} Kxa8 {[%emt 0:00:05] KB-KB} 35. g4 {[%emt 0:00:00]} (35. Bd3 $16) 35... hxg4 $11 {[%emt 0:00:01] The position is equal.} 36. h5 {[%emt 0:00:00]} Bh7 {[%emt 0:00:02]} 37. Kg3 {[%emt 0:00:00]} Kb7 {[%emt 0:00:45]} 38. e4 {[%emt 0:08:00]} dxe4 {[%emt 0:39:32]} 39. Bb3 {Weighted Error Value: White=0.13 (very precise) /Black=0.08 (flawless)} 1/2-1/2

[Event "FIDE WSCC 50 2022"]
[Site "Assisi"]
[Date "2022.11.26"]
[Round "11.8"]
[White "Pavlovic, Milos"]
[Black "Plotkin, Victor"]
[Result "1-0"]
[ECO "C54"]
[WhiteElo "2447"]
[BlackElo "2290"]
[Annotator "TA"]
[PlyCount "49"]
[EventDate "2022.11.14"]
[EventType "swiss"]
[EventCountry "ITA"]
[SourceTitle "playchess.com"]
[Source "ChessBase"]
[SourceQuality "1"]
[TimeControl "40/5400+30:1800+30"]

{[%evp 14,49,18,12,29,16,12,10,15,9,31,25,70,-9,10,0,0,0,2,0,2,1,36,22,27,22,31,16,10,12,27,14,283,279,833,648,1072,1039]} 1. e4 {[%emt 0:00:31]} e5 {[%emt 0:00:10]} 2. Bc4 {[%emt 0:00:06]} Nf6 {[%emt 0:00:28]} 3. d3 {[%emt 0:00:07]} Bc5 {[%emt 0:00:36]} 4. Nf3 {[%emt 0:00:07]} Nc6 {[%emt 0:00:25]} 5. O-O {[%emt 0:00:31]} h6 {[%emt 0:03:48]} 6. c3 {[%emt 0:00:34]} d6 {[%emt 0:02:56]} 7. Re1 {[%emt 0:00:22]} O-O {[%emt 0:00:41]} 8. h3 {[%emt 0:00:05]} Bb6 {[%emt 0:03:26] 8...Bb6 is a critical line. C54: Giuoco Piano: 4 c3 Nf6, main lines with 5 d4 and 5 d3.} 9. Bb3 {[%emt 0:00:18]} Ne7 {[%emt 0:04:40]} 10. Nbd2 {[%emt 0:00:18]} Ng6 {[%emt 0:00:59] The position is equal.} 11. Nf1 {[%emt 0:04:09]} Nh5 {[%emt 0:05:35]} 12. d4 {[%emt 0:09:12][%cal Of3e5] [#]} Nhf4 $146 {[%emt 0:05:03]} ({Predecessor:} 12... Qf6 13. Be3 Nhf4 14. Kh2 c5 15. Ng3 Be6 16. d5 Bd7 17. Bc2 c4 18. a4 Rac8 {1-0 (58) Laddha,S (2262)-Dushyant,S (2406) Dubai 2022}) 13. Ne3 {[%emt 0:08:44]} ({Better is} 13. Bxf4 $14 Nxf4 14. dxe5) 13... Re8 {[%emt 0:10:16]} 14. Nd5 {[%emt 0:11:38]} (14. Nf5 {feels hotter.} exd4 15. N3xd4 Qf6 16. Qf3) 14... Nxd5 {[%emt 0:01:16]} 15. Bxd5 {[%emt 0:00:03]} Qf6 {[%emt 0:02:19]} 16. a4 {[%emt 0:00:37][%cal Ba2a4,Ba4a5][%mdl 32]} c6 {[%emt 0:00:50] Against a5} 17. Bc4 {[%emt 0:00:05]} Nf4 {[%emt 0:02:21]} 18. a5 {[%emt 0:00:32]} Bc7 {[%emt 0:00:25][%cal Of4h3]} 19. Bf1 {[%emt 0:00:08]} Qg6 {[%emt 0:06:38]} 20. Bxf4 {[%emt 0:04:56]} exf4 {[%emt 0:00:09]} 21. Qd2 {[%emt 0:00:04]} Bxh3 {[%emt 0:06:34]} (21... Rxe4 $2 22. Rxe4 Qxe4 23. Re1 $18) 22. Qxf4 {[%emt 0:00:16]} Re7 $2 {[%emt 0:04:54][%mdl 8192] [#]} (22... Bd7 $11 {and Black has nothing to worry.}) 23. Qh4 $1 $18 {[%emt 0:00:57][%csl LRe7,LRh3]} Bg4 $2 {[%emt 0:05:08]} (23... Bxg2 24. Bxg2 Rae8) 24. Qxe7 {[%emt 0:00:29]} Bd8 {[%emt 0:00:24]} 25. Qxb7 {[%emt 0:00:10] Weighted Error Value: White=0.12 (very precise) /Black=0.39} 1-0

[Event "FIDE WSCC 50 2022"]
[Site "Assisi"]
[Date "2022.11.26"]
[Round "11.9"]
[White "Antic, Dejan"]
[Black "Terentiev, Sergei"]
[Result "1-0"]
[ECO "D72"]
[WhiteElo "2412"]
[BlackElo "2274"]
[Annotator "TA"]
[PlyCount "93"]
[EventDate "2022.11.14"]
[EventType "swiss"]
[EventCountry "ITA"]
[SourceTitle "playchess.com"]
[Source "ChessBase"]
[SourceQuality "1"]
[TimeControl "40/5400+30:1800+30"]

{[%evp 22,93,58,61,80,71,61,64,124,113,135,126,156,135,190,195,189,194,194,184,191,178,179,118,113,75,73,71,65,66,66,83,76,77,68,62,69,0,0,0,133,126,204,200,216,208,224,210,255,233,226,201,250,227,275,279,548,216,215,188,220,218,218,212,219,219,313,256,785,773,844,768,5924,5306]} 1. d4 {[%emt 0:00:06]} Nf6 {[%emt 0:00:30]} 2. c4 {[%emt 0:00:09]} g6 {[%emt 0:00:07]} 3. g3 {[%emt 0:00:39]} Bg7 {[%emt 0:00:11]} 4. Bg2 {[%emt 0:00:11]} d5 {[%emt 0:00:05]} 5. cxd5 {[%emt 0:01:46]} Nxd5 {[%emt 0:00:09]} 6. e4 {[%emt 0:00:57]} Nb6 {[%emt 0:09:30]} 7. Ne2 {[%emt 0:00:52]} O-O {[%emt 0:09:44]} 8. O-O {[%emt 0:03:38]} Nc6 {[%emt 0:02:06]} 9. d5 {[%emt 0:01:21]} Na5 {[%emt 0:00:36]} 10. Nbc3 {[%emt 0:11:28]} c6 {[%emt 0:00:07]} 11. b3 {[%emt 0:03:03]} cxd5 {[%emt 0:00:09]} 12. exd5 {[%emt 0:00:14]} e6 {[%emt 0:05:32] D72: Fianchetto Grünfeld: 5 cxd5 Nxd5 6 e4 Nb6 (without Nf3).} 13. Ba3 {[%emt 0:06:45]} (13. d6 {is interesting.} Nc6 14. Be3 Be5 15. Bf4) 13... Re8 {[%emt 0:00:19]} 14. d6 {[%emt 0:02:21]} a6 {[%emt 0:08:25]} (14... Bd7 $14) 15. Rc1 $16 {[%emt 0:03:07] [#]} Bd7 $146 {[%emt 0:09:06]} ({Predecessor:} 15... e5 16. Ne4 f5 17. Nc5 Nc6 18. Nxb7 Bxb7 19. Bxc6 Bxc6 20. Rxc6 Nd7 21. Qd5+ Kh8 {1-0 (28) Golikov,A (2370)-Stajcic,N (2290) Kecskemet 1990}) 16. Ne4 $1 {[%emt 0:02:49]} Nc6 {[%emt 0:09:42]} 17. Nc5 {[%emt 0:02:01]} Bc8 {[%emt 0:00:31] [#]} (17... Nd5 $16 18. Nf4 (18. Nxb7 Qb8 $16) 18... Nxf4 19. gxf4 Ra7) 18. Nxb7 $1 $18 {[%emt 0:05:16][%mdl 512]} Bxb7 {[%emt 0:00:10]} 19. Bxc6 {[%emt 0:00:31]} Bxc6 {[%emt 0:00:11]} 20. Rxc6 {[%emt 0:00:05]} Nd5 {[%emt 0:00:19]} 21. Qd2 {[%emt 0:02:20]} a5 {[%emt 0:04:30]} 22. Rd1 {[%emt 0:06:51]} (22. Rfc1 $18) 22... Qd7 {[%emt 0:05:47]} 23. Rc4 {[%emt 0:01:16] Black must now prevent Nf4.} a4 {[%emt 0:08:51] Threatens to win with ...axb3.} 24. Bc5 {[%emt 0:01:16]} axb3 {[%emt 0:00:20]} 25. axb3 {[%emt 0:00:09]} Qb5 {[%emt 0:01:35]} 26. Qc2 {[%emt 0:01:17]} Red8 {[%emt 0:00:15]} 27. Nf4 {[%emt 0:02:25]} Nf6 {[%emt 0:07:39][%cal Bd5f6,Bf6d7,Bd7e5][%mdl 32]} 28. h4 {[%emt 0:03:37] White is more active.} Nd7 {[%emt 0:00:47]} 29. Be3 {[%emt 0:04:07]} ({White should try} 29. b4 $14) 29... Ne5 $11 {[%emt 0:00:24]} 30. Rc5 {[%emt 0:04:06]} Qb7 {[%emt 0:01:52]} (30... Qb4 $1 $11 {keeps the balance.}) 31. Rc7 $36 {[%emt 0:00:46][%mdl 2048] Black is under strong pressure. White leaves nothing to chance now.} Qb5 {[%emt 0:00:01]} (31... Qf3 $16) 32. Bc5 $1 $18 {[%emt 0:04:40]} Bf8 {[%emt 0:03:37][%cal Of8d6]} 33. Qc3 {[%emt 0:06:04]} Nd7 {[%emt 0:00:24]} 34. b4 {[%emt 0:00:23]} Bg7 {[%emt 0:00:51]} 35. Qe3 {[%emt 0:01:35]} Qa4 {[%emt 0:05:11]} 36. Re1 {[%emt 0:02:04]} Re8 {[%emt 0:00:06]} 37. Qe4 {[%emt 0:01:09]} Rab8 {[%emt 0:01:49]} 38. Kg2 {[%emt 0:00:58]} Red8 $2 {[%emt 0:01:24] [#]} (38... Rbd8 39. h5 Rf8 40. hxg6 hxg6) 39. h5 $2 {[%emt 0:00:51]} (39. Nxe6 $1 {[%mdl 512]} Re8 {[#]} 40. Qc4 $1) 39... Qa8 {[%emt 0:00:07]} 40. hxg6 {[%emt 0:01:37] Chess con chili.} hxg6 {[%emt 0:00:06]} 41. Qxa8 {[%emt 0:31:52]} Rxa8 {[%emt 0:30:56]} 42. Rd1 {[%emt 0:02:21]} Kf8 {[%emt 0:04:13]} 43. Ba7 {[%emt 0:01:16]} Ke8 {[%emt 0:03:12]} (43... Be5 {keeps fighting.} 44. b5 Nf6) 44. b5 {[%emt 0:00:48] aiming for Nh3.} Rab8 $2 {[%emt 0:00:00]} (44... Bf8 45. b6 Nxb6) 45. Bxb8 {[%emt 0:00:00] White is clearly winning.} Rxb8 {[%emt 0:00:00]} 46. Rdc1 {[%emt 0:00:00] Intending Rc8+ and mate.} Nb6 {[%emt 0:00:00] Against Rc8+} 47. Re7+ {[%emt 0:00:00] Weighted Error Value: White=0.26 (precise) /Black=0.38} 1-0

[Event "FIDE WSCC 50 2022"]
[Site "Assisi"]
[Date "2022.11.26"]
[Round "11.10"]
[White "Arakhamia-Grant, Ketevan"]
[Black "Vinter-Schou, Uffe"]
[Result "0-1"]
[ECO "B48"]
[WhiteElo "2327"]
[BlackElo "2375"]
[Annotator "TA"]
[PlyCount "81"]
[EventDate "2022.11.14"]
[EventType "swiss"]
[EventCountry "ITA"]
[SourceTitle "playchess.com"]
[Source "ChessBase"]
[SourceQuality "1"]
[TimeControl "40/5400+30:1800+30"]

{[%evp 14,81,24,16,33,11,25,0,0,0,0,0,0,-11,0,0,0,0,0,0,0,0,5,0,0,0,33,0,4,0,0,0,0,-72,-18,-19,-16,-19,-13,-43,-47,-125,-116,-160,-137,-214,-149,-231,-207,-200,-178,-218,-118,-400,-392,-584,-560,-538,-163,-557,-556,-550,-513,-502,-491,-637,-610,-777,-755,-716]} 1. e4 {[%emt 0:00:02]} c5 {[%emt 0:00:10]} 2. Nf3 {[%emt 0:00:07]} e6 {[%emt 0:00:11]} 3. d4 {[%emt 0:00:09]} cxd4 {[%emt 0:00:05]} 4. Nxd4 {[%emt 0:00:03]} Nc6 {[%emt 0:00:58]} 5. Nc3 {[%emt 0:00:40]} Qc7 {[%emt 0:00:11]} 6. Be3 {[%emt 0:02:06]} Nf6 {[%emt 0:01:11]} 7. Qd2 {[%emt 0:01:42]} a6 {[%emt 0:00:21]} 8. O-O-O {[%emt 0:01:53]} Be7 {[%emt 0:01:19] now supersedes 8...Bb4. B48: Sicilian: Taimanov: 5 Nc3 Qc7 6 Be3 a6 without Be2.} 9. f3 {[%emt 0:04:17]} b5 {[%emt 0:00:35]} 10. g4 {[%emt 0:00:30][%cal Bg2g4,Bg4g5][%mdl 32] 10.Kb1 is not played anymore.} Nxd4 {[%emt 0:01:16] The position is equal.} 11. Bxd4 {[%emt 0:04:42]} Bb7 {[%emt 0:00:26]} 12. g5 {[%emt 0:06:16] Prevents b4. is the legacy move (12.Kb1).} Nh5 {[%emt 0:00:07]} 13. h4 {[%emt 0:02:34][%cal Od4e5]} O-O {[%emt 0:03:06]} 14. Bh3 {[%emt 0:01:24]} f5 {[%emt 0:12:23]} 15. gxf6 {[%emt 0:05:48]} Bxf6 {[%emt 0:00:17] [#]} 16. Bxf6 $146 {[%emt 0:07:41]} ({Predecessor:} 16. Rhg1 Bxd4 17. Qxd4 Rf7 18. Kb1 Rc8 19. Rd2 Nf4 20. Bf1 Qc5 21. a4 b4 22. Nd1 {0-1 (38) Moe,M (2152)-Vestby Ellingsen,M (2335) Helsingor 2019}) 16... Nxf6 {[%emt 0:00:06]} 17. Rhg1 {[%emt 0:02:15]} Rf7 {[%emt 0:00:38]} 18. Kb1 {[%emt 0:01:12]} Raf8 {[%emt 0:20:15]} 19. a3 {[%emt 0:02:07]} Bc6 {[%emt 0:12:11]} 20. Qg5 {[%emt 0:04:38]} Kh8 {[%emt 0:03:06]} 21. Rg2 {[%emt 0:11:06]} Ne8 {[%emt 0:04:20]} 22. Bg4 {[%emt 0:01:12]} Nf6 {[%emt 0:14:42]} 23. h5 {[%emt 0:07:46]} (23. Bh3 $11 {remains equal.}) 23... h6 {[%emt 0:00:39]} ({Black should try} 23... Nxg4 $1 $17 24. fxg4 (24. Qxg4 Qf4 $17) 24... Qf4) 24. Qc5 $1 $11 {[%emt 0:01:20]} Nxg4 {[%emt 0:07:38]} 25. fxg4 {[%emt 0:00:35]} Rf1 {[%emt 0:00:05]} 26. Rg1 {[%emt 0:04:55]} (26. g5 {looks sharper.} Rxd1+ 27. Nxd1 Rf1 28. Rf2) 26... Rxd1+ {[%emt 0:01:19]} 27. Rxd1 {[%emt 0:01:46] [#]} (27. Nxd1 $15 Qd8 28. Nc3) 27... Qf4 $1 $17 {[%emt 0:01:02][%csl LRe4,LRg4]} 28. e5 {[%emt 0:10:42]} Rf7 {[%emt 0:04:32]} 29. Rd4 {[%emt 0:03:06]} (29. Rg1 $17) 29... Qf1+ {[%emt 0:00:49]} 30. Ka2 {[%emt 0:00:06]} (30. Rd1 $17 Qg2 31. Qd4) 30... Qf2 $19 {[%emt 0:00:10] Threatens to win with ...Rf4.} 31. Nd1 {[%emt 0:02:21]} Qg1 {[%emt 0:00:17] And now ...Rf4 would win.} 32. Nc3 {[%emt 0:02:24]} Rf1 {[%emt 0:06:05]} ({Better is} 32... Kg8 $19 {White must now prevent ...Rf3.} 33. Qd6 Qg2) 33. Qa7 $2 {[%emt 0:06:46][%mdl 8192] This costs White the game.} (33. Ne4 $17 Rf7 34. Qd6) 33... Kh7 {[%emt 0:00:33]} 34. Rxd7 {[%emt 0:01:55]} (34. Kb3 $142) 34... Bxd7 {[%emt 0:01:37]} 35. Qxd7 {[%emt 0:00:07][%mdl 4096] Endgame KQR-KQN} Ra1+ {[%emt 0:00:34][%cal Bf1a1,Ba1g1,Bg1g4][%mdl 32]} 36. Kb3 {[%emt 0:00:05]} Qxg4 {[%emt 0:00:04][%csl Gb5][%cal Rg4c4] Black is clearly winning.} 37. Qd3+ {[%emt 0:00:28]} Qf5 {[%emt 0:00:06]} 38. Ne4 {[%emt 0:00:28][%cal Oe4f6] [#]} Rg1 $1 {[%emt 0:01:08]} (38... Qxh5 $2 {gets mated.} 39. Nf6+ Kh8 40. Qh7#) 39. Qe3 {[%emt 0:00:41]} Rg4 {[%emt 0:01:54]} 40. Nd6 {[%emt 0:01:21]} Qxh5 {[%emt 0:00:43]} 41. Qd3+ {[%emt 0:02:05] Weighted Error Value: White=0.44/Black=0.10 (very precise)} 0-1